fUST/lending_fUST_20240820
["ID","MTS","AMOUNT","RATE_DAILY","PERIOD"]
[335350904,1724153462494,-500.0,0.00017808,2]
[335350905,1724153462506,-1257.78,0.00017808,2]
[335350906,1724153462516,-1331.58,0.00017808,2]
[335350907,1724153462526,-258.79,0.00017808,2]
[335350908,1724153462538,-323.45830038,0.00017808,2]
[335350909,1724153462548,-500.0,0.00017808,2]
[335350910,1724153462559,-543.53,0.00017808,2]
[335350911,1724153462568,-500.0,0.00017808,2]
[335350912,1724153462579,-529.16,0.00017808,2]
[335350913,1724153462589,-500.0,0.00017808,2]
[335350914,1724153462600,-468.17436403,0.00017808,2]
[335350915,1724153462610,-500.0,0.00017808,2]
[335350916,1724153462621,-3522.39,0.00017808,2]
[335350917,1724153462632,-622.84,0.00017808,2]
[335350918,1724153462644,-500.0,0.00017808,2]
[335350919,1724153462655,-608.13115475,0.00017808,2]
[335350920,1724153462667,-500.0,0.00017808,2]
[335350921,1724153462678,-500.0,0.00017808,2]
[335350922,1724153462690,-500.0,0.00017808,2]
[335350923,1724153462703,-807.05,0.00017808,2]
[335350924,1724153462715,-500.0,0.00017808,2]
[335350925,1724153462729,-500.0,0.00017808,2]
[335350926,1724153462739,-500.0,0.00017808,2]
[335350927,1724153462750,-500.0,0.00017808,2]
[335350928,1724153462762,-562.6,0.00017808,2]
[335350929,1724153462772,-634.02879916,0.00017808,2]
[335350930,1724153462783,-842.83,0.00017808,2]
[335350931,1724153462798,-591.12161881,0.00017808,2]
[335350932,1724153462809,-1015.98,0.00017808,2]
[335350933,1724153462820,-6302.46,0.00017808,2]
[335350934,1724153462832,-190.57517064,0.00017808,2]
[335350935,1724153462844,-500.0,0.00017808,2]
[335350936,1724153462854,-194.95932661,0.00017808,2]
[335350937,1724153462863,-1119.03,0.00017808,2]
[335350938,1724153462874,-500.0,0.00017808,2]
[335350939,1724153462883,-378.61689988,0.00017808,2]
[335350940,1724153462893,-465.03034519,0.00017839,2]
[335350941,1724153462904,-19852.08634763,0.00017898,2]
[335350942,1724153462914,-4000.0,0.00018,7]
[335350943,1724153462924,-205.9412067,0.00018,2]
[335350944,1724153462933,-3607.92423264,0.00018033,10]
[335350945,1724153462943,-500.0,0.00018082,2]
[335350946,1724153462954,-500.0,0.00018082,2]
[335350947,1724153462963,-500.0,0.00018082,2]
[335350948,1724153462973,-500.0,0.00018082,2]
[335350949,1724153462984,-500.0,0.00018082,2]
[335350950,1724153462994,-2000.0,0.00018082,2]
[335350951,1724153463005,-500.0,0.00018082,2]
[335350952,1724153463015,-921.91,0.00018082,2]
[335350953,1724153463026,-500.0,0.00018082,2]
[335350954,1724153463037,-734.18,0.00018082,2]
[335350955,1724153463046,-500.0,0.00018082,2]
[335350956,1724153463057,-305.21,0.00018082,2]
[335350957,1724153463067,-500.0,0.00018082,2]
[335350958,1724153463077,-500.0,0.00018082,2]
[335350959,1724153463087,-591.36,0.00018082,2]
[335350960,1724153463096,-500.0,0.00018082,2]
[335350961,1724153463106,-789.51,0.00018082,2]
[335350962,1724153463117,-500.0,0.00018082,2]
[335350963,1724153463127,-500.0,0.00018082,2]
[335350964,1724153463137,-227.07,0.00018082,2]
[335350965,1724153463146,-435.99064678,0.00018082,2]
[335350966,1724153463156,-1868.22,0.00018082,2]
[335350967,1724153463166,-224.42363549,0.00018082,2]
[335350968,1724153463176,-500.0,0.00018082,2]
[335350969,1724153463186,-500.0,0.00018082,2]
[335350970,1724153463196,-500.0,0.00018082,2]
[335350971,1724153463206,-1012.95,0.00018082,2]
[335350972,1724153463217,-500.0,0.00018082,2]
[335350973,1724153463226,-500.0,0.00018082,2]
[335350974,1724153463237,-500.0,0.00018082,2]
[335350975,1724153463247,-500.0,0.00018082,2]
[335350976,1724153463257,-500.0,0.00018082,2]
[335350977,1724153463267,-246.32369394,0.00018082,2]
[335350978,1724153463277,-500.0,0.00018082,2]
[335350979,1724153463289,-500.0,0.00018082,2]
[335350980,1724153463299,-500.0,0.00018082,2]
[335350981,1724153463309,-500.0,0.00018082,2]
[335350982,1724153463319,-500.0,0.00018082,2]
[335350983,1724153463329,-500.0,0.00018082,2]
[335350984,1724153463340,-500.0,0.00018082,2]
[335350985,1724153463350,-500.0,0.00018082,2]
[335350986,1724153463360,-500.0,0.00018082,2]
[335350987,1724153463369,-500.0,0.00018082,2]
[335350988,1724153463379,-563.52,0.00018082,2]
[335350989,1724153463388,-500.0,0.00018082,2]
[335350990,1724153463398,-500.0,0.00018082,2]
[335350991,1724153463408,-2265.92,0.00018082,2]
[335350992,1724153463418,-500.0,0.00018082,2]
[335350993,1724153463428,-500.0,0.00018082,2]
[335350994,1724153463438,-500.0,0.00018082,2]
[335350995,1724153463448,-500.0,0.00018082,2]
[335350996,1724153463458,-365.1,0.00018082,2]
[335350997,1724153463467,-309.9,0.00018082,2]
[335350998,1724153463477,-500.0,0.00018082,2]
[335350999,1724153463487,-500.0,0.00018082,2]
[335351000,1724153463499,-1063.39,0.00018082,2]
[335351001,1724153463508,-500.0,0.00018082,2]
[335351002,1724153463518,-375.38118983,0.00018082,2]
[335351003,1724153463528,-249.16218882,0.00018082,2]
[335351004,1724153463539,-1413.91,0.00018082,2]
[335351005,1724153463549,-1960.06,0.00018082,2]
[335351006,1724153463561,-500.0,0.00018082,2]
[335351007,1724153463573,-500.0,0.00018082,2]
[335351008,1724153463584,-500.0,0.00018082,2]
[335351009,1724153463593,-500.0,0.00018082,2]
[335351010,1724153463603,-500.0,0.00018082,2]
[335351011,1724153463612,-1257.78,0.00018082,2]
[335351012,1724153463624,-1331.58,0.00018082,2]
[335351013,1724153463634,-296.21059283,0.00018082,2]
[335351014,1724153463644,-543.53,0.00018082,2]
[335351015,1724153463653,-500.0,0.00018082,2]
[335351016,1724153463663,-529.16,0.00018082,2]
[335351017,1724153463674,-500.0,0.00018082,2]
[335351018,1724153463683,-500.0,0.00018082,2]
[335351019,1724153463693,-3522.39,0.00018082,2]
[335351020,1724153463703,-622.84,0.00018082,2]
[335351021,1724153463719,-500.0,0.00018082,2]
[335351022,1724153463728,-500.0,0.00018082,2]
[335351023,1724153463740,-318.89111664,0.00018082,2]
[335351024,1724153463751,-500.0,0.00018082,2]
[335351025,1724153463762,-807.05,0.00018082,2]
[335351026,1724153463773,-500.0,0.00018082,2]
[335351027,1724153463784,-500.0,0.00018082,2]
[335351028,1724153463798,-500.0,0.00018082,2]
[335351029,1724153463808,-500.0,0.00018082,2]
[335351030,1724153463819,-562.6,0.00018082,2]
[335351031,1724153463829,-842.83,0.00018082,2]
[335351032,1724153463839,-1015.98,0.00018082,2]
[335351033,1724153463851,-6302.46,0.00018082,2]
[335351034,1724153463862,-544.89993281,0.00018082,2]
[335351035,1724153463872,-1119.03,0.00018082,2]
[335351036,1724153463882,-500.0,0.00018082,2]
[335351037,1724153463892,-300.0,0.000181,7]
[335351038,1724153463902,-6520.59533478,0.000181,2]
[335351039,1724153463912,-9266.68158753,0.000181,2]
[335351040,1724153463923,-2100.0,0.00018115,2]
[335351041,1724153463934,-3400.0,0.0001813,2]
[335351042,1724153463944,-1200.0,0.00018166,2]
[335351043,1724153463954,-3400.0,0.00018221,2]
[335351044,1724153463964,-1200.0,0.00018247,2]
[335351045,1724153463974,-2100.0,0.00018296,2]
[335351046,1724153463984,-350.46494298,0.000183,2]
[335351047,1724153463994,-976.98437946,0.00018317,2]
[335351048,1724153464005,-700.0,0.00018317,2]
[335351049,1724153464016,-500.0,0.00018339,2]
[335351050,1724153464028,-345.76143679,0.00018356,2]
[335351051,1724153464041,-500.0,0.00018356,2]
[335351052,1724153464051,-500.0,0.00018356,2]
[335351053,1724153464062,-503.93180508,0.00018356,2]
[335351054,1724153464072,-500.0,0.00018356,2]
[335351055,1724153464082,-2000.0,0.00018356,2]
[335351056,1724153464092,-420.44852246,0.00018356,2]
[335351057,1724153464101,-921.91,0.00018356,2]
[335351058,1724153464112,-609.26081606,0.00018356,2]
[335351059,1724153464123,-734.18,0.00018356,2]
[335351060,1724153464134,-500.0,0.00018356,2]
[335351061,1724153464144,-500.0,0.00018356,2]
[335351062,1724153464155,-500.0,0.00018356,2]
[335351063,1724153464165,-591.36,0.00018356,2]
[335351064,1724153464174,-500.0,0.00018356,2]
[335351065,1724153464184,-789.51,0.00018356,2]
[335351066,1724153464194,-500.0,0.00018356,2]
[335351067,1724153464204,-500.0,0.00018356,2]
[335351068,1724153464214,-1868.22,0.00018356,2]
[335351069,1724153464224,-500.0,0.00018356,2]
[335351070,1724153464234,-500.0,0.00018356,2]
[335351071,1724153464244,-500.0,0.00018356,2]
[335351072,1724153464253,-1012.95,0.00018356,2]
[335351073,1724153464263,-284.01827494,0.00018356,2]
[335351074,1724153464273,-500.0,0.00018356,2]
[335351075,1724153464282,-500.0,0.00018356,2]
[335351076,1724153464293,-500.0,0.00018356,2]
[335351077,1724153464303,-500.0,0.00018356,2]
[335351078,1724153464313,-500.0,0.00018356,2]
[335351079,1724153464323,-500.0,0.00018356,2]
[335351080,1724153464332,-438.97014127,0.00018356,2]
[335351081,1724153464344,-500.0,0.00018356,2]
[335351082,1724153464354,-299.57,0.00018356,2]
[335351083,1724153464364,-500.0,0.00018356,2]
[335351084,1724153464386,-500.0,0.00018356,2]
[335351085,1724153464396,-500.0,0.00018356,2]
[335351086,1724153464406,-500.0,0.00018356,2]
[335351087,1724153464416,-500.0,0.00018356,2]
[335351088,1724153464425,-563.52,0.00018356,2]
[335351089,1724153464435,-406.91929311,0.00018356,2]
[335351090,1724153464444,-500.0,0.00018356,2]
[335351091,1724153464454,-2265.92,0.00018356,2]
[335351092,1724153464464,-500.0,0.00018356,2]
[335351093,1724153464473,-500.0,0.00018356,2]
[335351094,1724153464483,-500.0,0.00018356,2]
[335351095,1724153464493,-500.0,0.00018356,2]
[335351096,1724153464504,-365.1,0.00018356,2]
[335351097,1724153464513,-309.9,0.00018356,2]
[335351098,1724153464523,-500.0,0.00018356,2]
[335351099,1724153464533,-500.0,0.00018356,2]
[335351100,1724153464544,-1063.39,0.00018356,2]
[335351101,1724153464554,-500.0,0.00018356,2]
[335351102,1724153464564,-1413.91,0.00018356,2]
[335351103,1724153464574,-1960.06,0.00018356,2]
[335351104,1724153464583,-500.0,0.00018356,2]
[335351105,1724153464595,-500.0,0.00018356,2]
[335351106,1724153464607,-500.0,0.00018356,2]
[335351107,1724153464617,-500.0,0.00018356,2]
[335351108,1724153464628,-500.0,0.00018356,2]
[335351109,1724153464638,-1257.78,0.00018356,2]
[335351110,1724153464648,-1331.58,0.00018356,2]
[335351111,1724153464658,-543.53,0.00018356,2]
[335351112,1724153464668,-500.0,0.00018356,2]
[335351113,1724153464679,-529.16,0.00018356,2]
[335351114,1724153464691,-500.0,0.00018356,2]
[335351115,1724153464702,-500.0,0.00018356,2]
[335351116,1724153464713,-3522.39,0.00018356,2]
[335351117,1724153464727,-622.84,0.00018356,2]
[335351118,1724153464739,-325.07954754,0.00018356,2]
[335351119,1724153464749,-500.0,0.00018356,2]
[335351120,1724153464762,-500.0,0.00018356,2]
[335351121,1724153464773,-807.05,0.00018356,2]
[335351122,1724153464783,-500.0,0.00018356,2]
[335351123,1724153464797,-500.0,0.00018356,2]
[335351124,1724153464808,-500.0,0.00018356,2]
[335351125,1724153464819,-500.0,0.00018356,2]
[335351126,1724153464830,-562.6,0.00018356,2]
[335351127,1724153464839,-842.83,0.00018356,2]
[335351128,1724153464850,-1015.98,0.00018356,2]
[335351129,1724153464862,-6302.46,0.00018356,2]
[335351130,1724153464873,-1119.03,0.00018356,2]
[335351131,1724153464883,-517.6837844,0.00018356,2]
[335351132,1724153464894,-503.32049717,0.00018359,2]
[335351133,1724153464903,-158.76411183,0.00018361,2]
[335351134,1724153464914,-3400.0,0.00018371,2]
[335351135,1724153464924,-2100.0,0.00018383,2]
[335351136,1724153464934,-546.05318971,0.00018399,2]
[335351137,1724153464945,-1200.0,0.00018434,2]
[335351138,1724153465056,-3400.0,0.00018437,2]
[335351139,1724153465067,-1200.0,0.00018441,2]
[335351140,1724153465076,-1200.0,0.0001846,2]
[335351141,1724153465086,-500.0,0.00018463,2]
[335351142,1724153465096,-2100.0,0.00018466,2]
[335351143,1724153465106,-1200.0,0.000185,2]
[335351144,1724153465115,-500.0,0.0001852,2]
[335351145,1724153465125,-2100.0,0.00018525,2]
[335351146,1724153465135,-3400.0,0.00018557,2]
[335351147,1724153465143,-3400.0,0.00018589,2]
[335351148,1724153465153,-1200.0,0.00018593,2]
[335351149,1724153465162,-499.08910352,0.00018596,2]
[335351150,1724153465172,-2100.0,0.00018604,2]
[335351151,1724153465181,-2100.0,0.00018607,2]
[335351152,1724153465191,-5245.26977166,0.00018612,2]
[335351153,1724153465200,-564.73416109,0.0001863,2]
[335351154,1724153465209,-500.0,0.0001863,2]
[335351155,1724153465219,-500.0,0.0001863,2]
[335351156,1724153465229,-1765.31467839,0.0001863,2]
[335351157,1724153465239,-921.91,0.0001863,2]
[335351158,1724153465249,-734.18,0.0001863,2]
[335351159,1724153465259,-500.0,0.0001863,2]
[335351160,1724153465268,-500.0,0.0001863,2]
[335351161,1724153465278,-500.0,0.0001863,2]
[335351162,1724153465287,-591.36,0.0001863,2]
[335351163,1724153465298,-500.0,0.0001863,2]
[335351164,1724153465307,-789.51,0.0001863,2]
[335351165,1724153465316,-500.0,0.0001863,2]
[335351166,1724153465326,-213.1,0.0001863,2]
[335351167,1724153465335,-1868.22,0.0001863,2]
[335351168,1724153465345,-500.0,0.0001863,2]
[335351169,1724153465355,-500.0,0.0001863,2]
[335351170,1724153465365,-500.0,0.0001863,2]
[335351171,1724153465375,-1012.95,0.0001863,2]
[335351172,1724153465385,-500.0,0.0001863,2]
[335351173,1724153465395,-500.0,0.0001863,2]
[335351174,1724153465405,-500.0,0.0001863,2]
[335351175,1724153465415,-500.0,0.0001863,2]
[335351176,1724153465426,-500.0,0.0001863,2]
[335351177,1724153465437,-500.0,0.0001863,2]
[335351178,1724153465447,-500.0,0.0001863,2]
[335351179,1724153465458,-500.0,0.0001863,2]
[335351180,1724153465468,-500.0,0.0001863,2]
[335351181,1724153465479,-500.0,0.0001863,2]
[335351182,1724153465488,-591.55622483,0.0001863,2]
[335351183,1724153465500,-500.0,0.0001863,2]
[335351184,1724153465510,-563.52,0.0001863,2]
[335351185,1724153465520,-500.0,0.0001863,2]
[335351186,1724153465530,-2265.92,0.0001863,2]
[335351187,1724153465542,-500.0,0.0001863,2]
[335351188,1724153465552,-514.19550752,0.0001863,2]
[335351189,1724153465562,-388.52637591,0.0001863,2]
[335351190,1724153465572,-500.0,0.0001863,2]
[335351191,1724153465582,-365.1,0.0001863,2]
[335351192,1724153465591,-309.9,0.0001863,2]
[335351193,1724153465602,-506.83749623,0.0001863,2]
[335351194,1724153465613,-500.0,0.0001863,2]
[335351195,1724153465623,-1063.39,0.0001863,2]
[335351196,1724153465633,-500.0,0.0001863,2]
[335351197,1724153465643,-1413.91,0.0001863,2]
[335351198,1724153465653,-1960.06,0.0001863,2]
[335351199,1724153465663,-500.0,0.0001863,2]
[335351200,1724153465673,-500.0,0.0001863,2]
[335351201,1724153465684,-500.0,0.0001863,2]
[335351202,1724153465694,-500.0,0.0001863,2]
[335351203,1724153465703,-500.0,0.0001863,2]
[335351204,1724153465715,-1257.78,0.0001863,2]
[335351205,1724153465728,-1331.58,0.0001863,2]
[335351206,1724153465738,-543.53,0.0001863,2]
[335351207,1724153465748,-500.0,0.0001863,2]
[335351208,1724153465758,-529.16,0.0001863,2]
[335351209,1724153465769,-500.0,0.0001863,2]
[335351210,1724153465779,-500.0,0.0001863,2]
[335351211,1724153465788,-3522.39,0.0001863,2]
[335351212,1724153465799,-622.84,0.0001863,2]
[335351213,1724153465808,-500.0,0.0001863,2]
[335351214,1724153465819,-500.0,0.0001863,2]
[335351215,1724153465830,-807.05,0.0001863,2]
[335351216,1724153465840,-500.0,0.0001863,2]
[335351217,1724153465849,-500.0,0.0001863,2]
[335351218,1724153465859,-500.0,0.0001863,2]
[335351219,1724153465869,-500.0,0.0001863,2]
[335351220,1724153465879,-562.6,0.0001863,2]
[335351221,1724153465889,-842.83,0.0001863,2]
[335351222,1724153465899,-1015.98,0.0001863,2]
[335351223,1724153465909,-6302.46,0.0001863,2]
[335351224,1724153465919,-1119.03,0.0001863,2]
[335351225,1724153465928,-1200.0,0.00018647,2]
[335351226,1724153465937,-3400.0,0.00018652,2]
[335351227,1724153465947,-1200.0,0.00018659,2]
[335351228,1724153465957,-101363.513783,0.000187,2]
[335351229,1724153465966,-500.0,0.00018716,2]
[335351230,1724153465976,-500.0,0.00018724,2]
[335351231,1724153465987,-3400.0,0.00018726,2]
[335351232,1724153465996,-465.00151726,0.00018731,2]
[335351233,1724153466007,-500.0,0.00018732,2]
[335351234,1724153466016,-2100.0,0.00018798,2]
[335351235,1724153466026,-1200.0,0.00018858,2]
[335351236,1724153466035,-2100.0,0.00018873,2]
[335351237,1724153466048,-700.0,0.00018875,2]
[335351238,1724153466058,-3400.0,0.00018898,2]
[335351239,1724153466067,-700.0,0.000189,2]
[335351240,1724153466077,-307.22257582,0.00018904,2]
[335351241,1724153466087,-500.0,0.00018904,2]
[335351242,1724153466096,-921.91,0.00018904,2]
[335351243,1724153466106,-734.18,0.00018904,2]
[335351244,1724153466117,-500.0,0.00018904,2]
[335351245,1724153466126,-500.0,0.00018904,2]
[335351246,1724153466136,-500.0,0.00018904,2]
[335351247,1724153466146,-591.36,0.00018904,2]
[335351248,1724153466155,-500.0,0.00018904,2]
[335351249,1724153466165,-789.51,0.00018904,2]
[335351250,1724153466174,-500.0,0.00018904,2]
[335351251,1724153466184,-1868.22,0.00018904,2]
[335351252,1724153466193,-266.7120858,0.00018904,2]
[335351253,1724153466203,-500.0,0.00018904,2]
[335351254,1724153466212,-500.0,0.00018904,2]
[335351255,1724153466222,-1012.95,0.00018904,2]
[335351256,1724153466231,-500.0,0.00018904,2]
[335351257,1724153466241,-500.0,0.00018904,2]
[335351258,1724153466250,-500.0,0.00018904,2]
[335351259,1724153466260,-500.0,0.00018904,2]
[335351260,1724153466270,-500.0,0.00018904,2]
[335351261,1724153466279,-500.0,0.00018904,2]
[335351262,1724153466288,-500.0,0.00018904,2]
[335351263,1724153466299,-500.0,0.00018904,2]
[335351264,1724153466308,-500.0,0.00018904,2]
[335351265,1724153466318,-236.43945453,0.00018904,2]
[335351266,1724153466327,-500.0,0.00018904,2]
[335351267,1724153466337,-563.52,0.00018904,2]
[335351268,1724153466347,-500.0,0.00018904,2]
[335351269,1724153466358,-2265.92,0.00018904,2]
[335351270,1724153466369,-500.0,0.00018904,2]
[335351271,1724153466378,-500.0,0.00018904,2]
[335351272,1724153466387,-365.1,0.00018904,2]
[335351273,1724153466399,-309.9,0.00018904,2]
[335351274,1724153466408,-500.0,0.00018904,2]
[335351275,1724153466419,-1063.39,0.00018904,2]
[335351276,1724153466429,-500.0,0.00018904,2]
[335351277,1724153466440,-1413.91,0.00018904,2]
[335351278,1724153466451,-1960.06,0.00018904,2]
[335351279,1724153466461,-500.0,0.00018904,2]
[335351280,1724153466471,-500.0,0.00018904,2]
[335351281,1724153466480,-500.0,0.00018904,2]
[335351282,1724153466491,-500.0,0.00018904,2]
[335351283,1724153466501,-500.0,0.00018904,2]
[335351284,1724153466510,-1257.78,0.00018904,2]
[335351285,1724153466520,-1331.58,0.00018904,2]
[335351286,1724153466529,-543.53,0.00018904,2]
[335351287,1724153466541,-500.0,0.00018904,2]
[335351288,1724153466551,-529.16,0.00018904,2]
[335351289,1724153466561,-500.0,0.00018904,2]
[335351290,1724153466570,-500.0,0.00018904,2]
[335351291,1724153466580,-3522.39,0.00018904,2]
[335351292,1724153466590,-622.84,0.00018904,2]
[335351293,1724153466600,-500.0,0.00018904,2]
[335351294,1724153466611,-500.0,0.00018904,2]
[335351295,1724153466621,-807.05,0.00018904,2]
[335351296,1724153466631,-500.0,0.00018904,2]
[335351297,1724153466642,-500.0,0.00018904,2]
[335351298,1724153466653,-500.0,0.00018904,2]
[335351299,1724153466665,-500.0,0.00018904,2]
[335351300,1724153466675,-562.6,0.00018904,2]
[335351301,1724153466686,-842.83,0.00018904,2]
[335351302,1724153466695,-1015.98,0.00018904,2]
[335351303,1724153466705,-6302.46,0.00018904,2]
[335351304,1724153466716,-1119.03,0.00018904,2]
[335351305,1724153466728,-2100.0,0.00018913,2]
[335351306,1724153466738,-1200.0,0.00018944,2]
[335351307,1724153466747,-7726.0,0.0001895,2]
[335351308,1724153466759,-602.049,0.0001895,2]
[335351309,1724153466769,-154.69833824,0.00018957,2]
[335351310,1724153466781,-2100.0,0.00018966,2]
[335351311,1724153466794,-700.0,0.00018978,2]
[335351312,1724153466804,-500.0,0.00019,4]
[335351313,1724153466815,-1000.0,0.00019,19]
[335351314,1724153466825,-155.12080504,0.00019,2]
[335351315,1724153466836,-377.8277,0.00019,2]
[335351316,1724153466846,-4382.84436898,0.00019,2]
[335351317,1724153466856,-7485.58166603,0.00019,2]
[335351318,1724153466868,-1932.186094,0.00019,2]
[335351319,1724153466878,-2100.0,0.00019022,2]
[335351320,1724153466889,-700.0,0.00019037,2]
[335351321,1724153466902,-1200.0,0.00019056,2]
[335351322,1724153466912,-3400.0,0.00019073,2]
[335351323,1724153466926,-2161.0,0.00019083,2]
[335351324,1724153466937,-2100.0,0.00019087,2]
[335351325,1724153466948,-186.54627369,0.000191,2]
[335351326,1724153466960,-700.0,0.00019124,2]
[335351327,1724153466971,-3400.0,0.00019127,2]
[335351328,1724153466981,-2100.0,0.0001913,2]
[335351329,1724153466991,-2100.0,0.00019136,2]
[335351330,1724153467001,-1200.0,0.00019155,2]
[335351331,1724153467014,-2100.0,0.00019155,2]
[335351332,1724153467026,-3400.0,0.00019159,2]
[335351333,1724153467038,-700.0,0.00019161,2]
[335351334,1724153467049,-500.0,0.00019178,2]
[335351335,1724153467060,-500.0,0.00019178,2]
[335351336,1724153467069,-236.46170231,0.00019178,2]
[335351337,1724153467079,-500.0,0.00019178,2]
[335351338,1724153467091,-921.91,0.00019178,2]
[335351339,1724153467100,-734.18,0.00019178,2]
[335351340,1724153467109,-491.69557677,0.00019178,2]
[335351341,1724153467119,-500.0,0.00019178,2]
[335351342,1724153467129,-500.0,0.00019178,2]
[335351343,1724153467137,-591.36,0.00019178,2]
[335351344,1724153467147,-500.0,0.00019178,2]
[335351345,1724153467157,-789.51,0.00019178,2]
[335351346,1724153467167,-500.0,0.00019178,2]
[335351347,1724153467176,-1868.22,0.00019178,2]
[335351348,1724153467186,-500.0,0.00019178,2]
[335351349,1724153467195,-500.0,0.00019178,2]
[335351350,1724153467205,-1012.95,0.00019178,2]
[335351351,1724153467214,-500.0,0.00019178,2]
[335351352,1724153467224,-500.0,0.00019178,2]
[335351353,1724153467234,-500.0,0.00019178,2]
[335351354,1724153467245,-390.43129201,0.00019178,2]
[335351355,1724153467255,-500.0,0.00019178,2]
[335351356,1724153467265,-500.0,0.00019178,2]
[335351357,1724153467368,-500.0,0.00019178,2]
[335351358,1724153467378,-500.0,0.00019178,2]
[335351359,1724153467387,-500.0,0.00019178,2]
[335351360,1724153467398,-563.52,0.00019178,2]
[335351361,1724153467409,-551.74152002,0.00019178,2]
[335351362,1724153467420,-2265.92,0.00019178,2]
[335351363,1724153467431,-500.0,0.00019178,2]
[335351364,1724153467442,-500.0,0.00019178,2]
[335351365,1724153467452,-365.1,0.00019178,2]
[335351366,1724153467463,-309.9,0.00019178,2]
[335351367,1724153467474,-500.0,0.00019178,2]
[335351368,1724153467483,-1063.39,0.00019178,2]
[335351369,1724153467493,-500.0,0.00019178,2]
[335351370,1724153467503,-1413.91,0.00019178,2]
[335351371,1724153467516,-1960.06,0.00019178,2]
[335351372,1724153467527,-202.5375394,0.00019178,2]
[335351373,1724153467538,-500.0,0.00019178,2]
[335351374,1724153467548,-500.0,0.00019178,2]
[335351375,1724153467558,-500.0,0.00019178,2]
[335351376,1724153467568,-500.0,0.00019178,2]
[335351377,1724153467578,-1257.78,0.00019178,2]
[335351378,1724153467587,-1331.58,0.00019178,2]
[335351379,1724153467598,-543.53,0.00019178,2]
[335351380,1724153467608,-500.0,0.00019178,2]
[335351381,1724153467618,-529.16,0.00019178,2]
[335351382,1724153467627,-500.0,0.00019178,2]
[335351383,1724153467637,-500.0,0.00019178,2]
[335351384,1724153467646,-3522.39,0.00019178,2]
[335351385,1724153467655,-622.84,0.00019178,2]
[335351386,1724153467665,-500.0,0.00019178,2]
[335351387,1724153467675,-500.0,0.00019178,2]
[335351388,1724153467685,-807.05,0.00019178,2]
[335351389,1724153467695,-182.10796421,0.00019178,2]
[335351390,1724153467704,-500.0,0.00019178,2]
[335351391,1724153467715,-500.0,0.00019178,2]
[335351392,1724153467728,-500.0,0.00019178,2]
[335351393,1724153467737,-562.6,0.00019178,2]
[335351394,1724153467747,-842.83,0.00019178,2]
[335351395,1724153467759,-1015.98,0.00019178,2]
[335351396,1724153467768,-6302.46,0.00019178,2]
[335351397,1724153467778,-1119.03,0.00019178,2]
[335351398,1724153467788,-275.460252,0.00019178,2]
[335351399,1724153467801,-172.241972,0.00019178,2]
[335351400,1724153467810,-151.0,0.00019178,2]
[335351401,1724153467820,-176.365968,0.00019178,2]
[335351402,1724153467829,-251.0,0.00019178,2]
[335351403,1724153467839,-151.0,0.00019178,2]